[Event "Frauenbundesliga 2021-22"]
[Site "Germany"]
[Date "2022.05.29"]
[Round "11.5"]
[White "Daemering, Katrin"]
[Black "Brandt, Carina"]
[Result "1/2-1/2"]
[ECO "A07"]
[WhiteElo "1966"]
[BlackElo "2061"]
[Annotator "TA"]
[PlyCount "80"]
[EventDate "2021.11.26"]
[EventType "team-tourn"]
[EventCountry "GER"]
[SourceTitle "playchess.com"]
[Source "ChessBase"]
[SourceQuality "1"]
[WhiteTeam "Leipzig"]
[BlackTeam "Harksheide"]
[TimeControl "40/5400+30:1800+30"]

{[%evp 12,80,26,13,54,4,0,-43,-35,-33,6,-35,-37,-36,-29,-67,-13,-74,-37,-70,62,65,44,-13,43,-48,-33,-33,52,39,66,0,423,418,368,58,54,51,71,35,75,39,53,28,70,30,43,46,54,50,388,141,372,347,831,165,160,0,0,0,0,0,0,0,0,0,0,0,0,0,0]} 1. Nf3 {[%emt 0:00:05]} Nf6 {[%emt 0:00:32]} 2. g3 {[%emt 0:00:04]} g6 {[%emt 0:00:05]} 3. Bg2 {[%emt 0:00:04]} Bg7 {[%emt 0:00:06]} 4. d3 {[%emt 0:00:04]} d5 {[%emt 0:01:26]} 5. O-O {[%emt 0:00:54]} O-O {[%emt 0:00:10]} 6. Nbd2 {[%emt 0:00:42]} c6 {[%emt 0:09:39]} 7. e4 {[%emt 0:03:31]} Nfd7 {[%emt 0:01:51] A07: Réti Opening: New York and Capablanca Systems.} 8. Ne1 {[%emt 0:08:10] [#]} (8. Re1 $14) 8... Nc5 $146 {[%emt 0:06:31]} ({Predecessor:} 8... e6 9. f4 Bd4+ 10. Kh1 f6 11. Bh3 Qe7 12. Qe2 Re8 13. Nef3 Bb6 14. e5 f5 15. Nb3 {0-1 (43) Garcia Manuel,V-Caporale,G Sao Paulo 2000}) 9. f4 {[%emt 0:17:20]} dxe4 $1 {[%emt 0:05:14] Black is slightly better.} 10. dxe4 {[%emt 0:08:30]} e5 {[%emt 0:14:28]} (10... Na4 {is more complex.} 11. Nd3 Nxb2 12. Bxb2 Bxb2 13. Nxb2 Qd4+) 11. Kh1 {[%emt 0:30:05]} exf4 {[%emt 0:05:52]} 12. gxf4 {[%emt 0:01:22]} Qh4 {[%emt 0:03:13]} 13. Qf3 {[%emt 0:09:12]} Rd8 {[%emt 0:10:14]} (13... Bg4 $15 14. Qe3 Qh5) 14. Nc4 {[%emt 0:12:18]} (14. e5 $11 {keeps the balance.}) 14... Be6 {[%emt 0:06:04]} (14... Bg4 $5 {[%cal Rg4f3]} 15. Qe3 Bd4 $15) 15. Ne3 {[%emt 0:01:15]} f5 {[%emt 0:07:21]} ({Black should try} 15... Nbd7 $15) 16. exf5 $14 {[%emt 0:01:29]} gxf5 {[%emt 0:00:08]} (16... Bxf5 $2 17. Nxf5 gxf5 18. Bh3 $18) 17. Qg3 {[%emt 0:00:16]} (17. Bh3 $14) 17... Qf6 {[%emt 0:01:08]} (17... Qxg3 $11 18. hxg3 Nbd7) 18. Rg1 {[%emt 0:00:23]} (18. Nf3 $14) 18... Kh8 $15 {[%emt 0:00:56]} 19. Bf3 {[%emt 0:01:09]} Bh6 {[%emt 0:04:59]} (19... Nba6 $15) 20. N1g2 $14 {[%emt 0:00:55]} Nba6 {[%emt 0:02:04]} 21. a3 {[%emt 0:00:49]} ({Better is} 21. Qh3 $1 $14) 21... Ne4 $2 {[%emt 0:02:34][%mdl 8192]} (21... Nc7 $11) 22. Bxe4 $18 {[%emt 0:00:38]} fxe4 {[%emt 0:00:08]} 23. Ng4 $2 {[%emt 0:00:24]} (23. f5 $18 {And now Ng4 would win.} Rg8 24. Qd6 (24. Ng4 Bxc1 25. Nxf6 Rxg3 $16)) 23... Bxg4 $14 {[%emt 0:00:47]} 24. Qxg4 {[%emt 0:00:01]} Rg8 {[%emt 0:05:00]} 25. Qe2 {[%emt 0:00:02]} Nc5 {[%emt 0:01:41]} (25... Qd4 26. Qh5 (26. Rd1 Qg7 $14) 26... Qd6 27. Be3 $16) 26. Be3 {[%emt 0:00:30]} Ne6 {[%emt 0:00:35]} 27. c3 {[%emt 0:00:05]} Qf5 {[%emt 0:01:48]} (27... Nxf4 $2 28. Nxf4 c5 29. Raf1 $18) (27... Bxf4 $2 28. Raf1 $18) 28. Qf2 {[%emt 0:01:30]} Rg4 {[%emt 0:03:12]} 29. Nh4 {[%emt 0:00:30]} Rxg1+ $1 {[%emt 0:02:10]} 30. Rxg1 {[%emt 0:00:02]} Qf7 {[%emt 0:00:16][%mdl 8192] [#]} (30... Qf6 $14) 31. Bxa7 $2 {[%emt 0:01:53]} (31. f5 $1 $18 {[%cal Rf5e6] and the rest is easy.} Bxe3 32. Qxe3) 31... Rf8 $2 {[%emt 0:01:37] [#]} (31... Bf8 $16) 32. f5 $1 $18 {[%emt 0:00:31]} Bg5 $2 {[%emt 0:03:23]} (32... e3 33. Qg3 (33. Bxe3 Bxe3 34. Qxe3 Ng7 $18) 33... Ng7) 33. Bd4+ $2 {[%emt 0:01:09]} (33. fxe6 Qxf2 34. Bxf2) 33... Nxd4 {[%emt 0:00:21]} 34. Qxd4+ {[%emt 0:00:02]} ({White must play} 34. Rxg5 $16 Nf3 35. Nxf3 exf3 36. Qxf3) 34... Bf6 $11 {[%emt 0:00:11] The position is equal.} 35. Qxe4 {[%emt 0:00:28]} Bxh4 {[%emt 0:00:19]} 36. Qxh4 {[%emt 0:00:03] KQR-KQR} Qd5+ {[%emt 0:00:45]} 37. Rg2 {[%emt 0:00:01] aiming for Qg4.} Qd1+ {[%emt 0:00:29]} (37... Rxf5 38. Qe1 Rg5 39. Qe8+ Kg7 40. Qe7+ Kh6 41. Qxg5+ Qxg5 42. Rxg5 Kxg5 43. Kg2 $16) 38. Rg1 {[%emt 0:00:01]} Qd5+ {[%emt 0:00:01]} 39. Rg2 {[%emt 0:00:03] Hoping for Qg4.} Qd1+ {[%emt 0:01:51]} ({Don't play} 39... Rxf5 40. Qe1 Rg5 41. Qe8+ Kg7 42. Qe2 $14) 40. Rg1 {[%emt 0:00:08]} Qd5+ {[%emt 0:01:15] Weighted Error Value: White=0.65/Black=0.69} 1/2-1/2

[Event "Frauenbundesliga 2021-22"]
[Site "Germany"]
[Date "2022.05.29"]
[Round "11.5"]
[White "Giebel, Christine"]
[Black "Fuchs, Judith"]
[Result "0-1"]
[ECO "B22"]
[WhiteElo "1833"]
[BlackElo "2229"]
[Annotator "TA"]
[PlyCount "76"]
[EventDate "2021.11.26"]
[EventType "team-tourn"]
[EventCountry "GER"]
[SourceTitle "playchess.com"]
[Source "ChessBase"]
[SourceQuality "1"]
[WhiteTeam "Loeberitz"]
[BlackTeam "Hamburger SK"]
[TimeControl "40/5400+30:1800+30"]

{[%evp 9,76,-31,-24,-24,-20,-20,-26,-91,-46,-43,-37,-84,-80,-94,-96,-92,-87,-94,-64,-64,-47,-47,-47,-54,-49,-49,-36,-37,-25,-33,-27,-26,-15,-175,-167,-166,-167,-164,-164,-169,-147,-162,-162,-164,-113,-238,-203,-243,-247,-335,-154,-142,-132,-138,-75,-179,-187,-833,-814,-1107,-1090,-1059,-1069,-1038,-1018,-2095,-2052,-29991,-29992]} 1. e4 {[%emt 0:00:03]} c5 {[%emt 0:00:07]} 2. c3 {[%emt 0:00:07]} d5 {[%emt 0:00:05]} 3. e5 {[%emt 0:00:10]} a6 {[%emt 0:00:11]} 4. d4 {[%emt 0:00:32]} Nc6 {[%emt 0:00:31]} 5. f4 {[%emt 0:01:14]} cxd4 {[%emt 0:12:34]} 6. cxd4 {[%emt 0:01:38] [#] B22: Sicilian: 2 c3.} Nh6 $146 {[%emt 0:00:15]} ({Predecessor:} 6... Bf5 7. Nf3 e6 8. Nc3 Bb4 9. a3 Ba5 10. Be2 Nge7 11. O-O O-O 12. Kh1 Bb6 {0-1 (32) Baez,O (1600)-Galvis Buitrago,P Manizales 2014}) 7. Nc3 {[%emt 0:04:24]} Bf5 {[%emt 0:09:48]} 8. Bd3 {[%emt 0:14:58]} (8. Nf3 $11) 8... e6 {[%emt 0:02:28]} 9. Nf3 {[%emt 0:07:28]} Qb6 {[%emt 0:06:31]} 10. Bb1 {[%emt 0:12:37]} (10. a3 $15 {is more appropriate.}) 10... Bg4 $17 {[%emt 0:08:01]} 11. Ne2 {[%emt 0:13:41]} Bxf3 {[%emt 0:04:57]} 12. gxf3 {[%emt 0:00:17]} Bb4+ {[%emt 0:00:20]} 13. Bd2 {[%emt 0:03:46]} Be7 {[%emt 0:01:28][%cal Bb4e7,Be7h4,Bh4d8][%mdl 32] Black is more active.} (13... Nxd4 $2 14. Nxd4 Rc8 15. a3 (15. Qa4+ Rc6 $18) 15... Bxd2+ 16. Qxd2 $18) 14. Bc3 {[%emt 0:00:41]} Bh4+ {[%emt 0:07:35]} 15. Ng3 {[%emt 0:11:59]} g6 {[%emt 0:01:06]} 16. O-O {[%emt 0:00:55]} Qa7 {[%emt 0:06:36]} 17. a4 {[%emt 0:03:50]} Bd8 {[%emt 0:03:42]} 18. Qd2 {[%emt 0:02:51]} Bb6 {[%emt 0:01:53]} 19. Rd1 {[%emt 0:00:58]} a5 {[%emt 0:00:57]} 20. Kh1 {[%emt 0:03:10]} Ng8 {[%emt 0:02:52]} 21. Bd3 $2 {[%emt 0:01:24]} (21. Ne2 $11) 21... Bxd4 $19 {[%emt 0:03:13]} 22. Bxd4 {[%emt 0:05:17]} Qxd4 {[%emt 0:00:56]} 23. Ne2 {[%emt 0:01:44]} Qb6 {[%emt 0:00:31]} 24. Nc3 {[%emt 0:00:37]} Nge7 {[%emt 0:00:29]} 25. Nb5 {[%emt 0:00:23]} O-O {[%emt 0:01:24]} 26. Rg1 {[%emt 0:03:13]} Kh8 {[%emt 0:03:28]} (26... f6 $19 27. exf6 Rxf6) 27. Qg2 {[%emt 0:01:15]} (27. Rae1 $17 {was called for.}) 27... Nb4 {[%emt 0:02:28]} 28. Bb1 {[%emt 0:03:24]} Qe3 {[%emt 0:04:28]} 29. Qg5 {[%emt 0:01:12]} Ng8 {[%emt 0:05:44]} (29... Qxf3+ $19 30. Rg2 {[#]} Rac8 $1) 30. Ra3 $17 {[%emt 0:00:32]} Qd2 {[%emt 0:01:09]} 31. Rc3 {[%emt 0:00:38]} Nc6 {[%emt 0:02:43]} (31... Rac8 $142 32. Rg2 Qd1+ 33. Rg1 Qd2) 32. Nd6 {[%emt 0:00:57]} (32. h4 $17) 32... Qxb2 $19 {[%emt 0:02:58]} 33. Nxf7+ $2 {[%emt 0:00:23]} (33. Re3) 33... Rxf7 {[%emt 0:00:20]} 34. Bxg6 {[%emt 0:00:01]} hxg6 {[%emt 0:00:58]} ({Worse is} 34... Qxc3 35. Bxf7 Qxf3+ 36. Rg2 Qf1+ 37. Rg1 Qf3+ 38. Rg2 Qd1+ 39. Rg1 Qf3+ $11) 35. Qxg6 {[%emt 0:00:02]} Rh7 {[%emt 0:00:44][%csl Gh7][%cal Rb2h2] [#]} ({Weaker is} 35... Qxc3 36. Qxf7 Qxf3+ 37. Rg2 Qf1+ 38. Rg1 Qxg1+ 39. Kxg1 $17) 36. Rc2 {[%emt 0:00:15]} Qb3 {[%emt 0:01:41]} 37. Rg3 {[%emt 0:01:25]} Nce7 {[%emt 0:01:19]} 38. Rcg2 {[%emt 0:00:00]} Nxg6 {[%emt 0:00:00] Weighted Error Value: White=0.85/Black=0.16 (very precise)} 0-1

[Event "Frauenbundesliga 2021-22"]
[Site "Germany"]
[Date "2022.05.29"]
[Round "11.6"]
[White "Tammert, Iamze"]
[Black "Obolentseva, Alexandra"]
[Result "1/2-1/2"]
[ECO "E64"]
[WhiteElo "2302"]
[BlackElo "2305"]
[Annotator "TA"]
[PlyCount "51"]
[EventDate "2021.11.26"]
[EventType "team-tourn"]
[EventCountry "GER"]
[SourceTitle "playchess.com"]
[Source "ChessBase"]
[SourceQuality "1"]
[WhiteTeam "Baden-Baden"]
[BlackTeam "Bad Koenigshofen"]
[TimeControl "40/5400+30:1800+30"]

{[%evp 15,51,22,14,7,25,0,0,4,18,0,22,-13,0,10,20,18,16,25,35,20,34,20,33,20,36,30,45,24,57,42,52,27,27,26,27,27,35,10]} 1. c4 {[%emt 0:00:03]} Nf6 {[%emt 0:00:22]} 2. Nc3 {[%emt 0:00:11]} g6 {[%emt 0:00:29]} 3. g3 {[%emt 0:00:09]} Bg7 {[%emt 0:00:12]} 4. Bg2 {[%emt 0:00:02]} O-O {[%emt 0:00:13]} 5. d4 {[%emt 0:00:58]} d6 {[%emt 0:00:13]} 6. Nf3 {[%emt 0:01:57]} c5 {[%emt 0:00:14]} 7. dxc5 {[%emt 0:04:39]} dxc5 {[%emt 0:00:07]} 8. Qxd8 {[%emt 0:01:02]} Rxd8 {[%emt 0:03:36]} 9. Be3 {[%emt 0:00:03] E64: King's Indian: Fianchetto: 6...c5 7 d5.} Na6 {[%emt 0:04:57]} 10. Ne5 {[%emt 0:04:29]} Ne8 {[%emt 0:04:04][%cal Bf6e8,Be8d6,Bd6f5][%mdl 32]} 11. f4 {[%emt 0:09:47] The position is equal.} Nd6 {[%emt 0:01:57]} 12. Rd1 {[%emt 0:05:03]} f6 {[%emt 0:04:14]} 13. Nf3 {[%emt 0:00:34] [#]} (13. Nd3 $5 {[%cal Rd3c5]}) 13... Be6 $146 {[%emt 0:03:22]} ({Predecessor:} 13... b6 14. Ne5 Bb7 15. Bxb7 Nxb7 16. Rxd8+ Nxd8 {½-½ (16) Petrosyan,M (2628)-Pantsulaia,L (2553) Chess.com INT 2020}) 14. b3 {[%emt 0:00:31]} Nf5 {[%emt 0:06:11]} 15. Bf2 {[%emt 0:00:35]} Rxd1+ {[%emt 0:00:18]} 16. Kxd1 {[%emt 0:00:30][%cal Be1d1,Bd1c1,Bc1c2][%mdl 32]} b6 {[%emt 0:04:53]} 17. Kc1 {[%emt 0:00:53][%cal Of3e5]} Nc7 {[%emt 0:05:07]} 18. Rd1 {[%emt 0:01:02][%cal Of3e5]} Nd6 {[%emt 0:03:25]} 19. h3 {[%emt 0:15:48]} Rb8 {[%emt 0:00:32]} 20. e4 {[%emt 0:03:00]} Nf7 {[%emt 0:01:19]} 21. Kc2 {[%emt 0:04:12]} Kf8 {[%emt 0:00:44]} 22. g4 {[%emt 0:04:07] aiming for f5.} Rd8 {[%emt 0:02:18]} 23. Rxd8+ {[%emt 0:08:10]} Nxd8 {[%emt 0:00:08]} 24. f5 {[%emt 0:00:41] [#] And now Bg3 would win.} Bd7 {[%emt 0:00:39]} 25. Bg3 {[%emt 0:00:48]} Ne8 {[%emt 0:03:40]} 26. Bf4 {[%emt 0:11:38] Weighted Error Value: White=0.10 (very precise) /Black=0.08 (flawless)} 1/2-1/2

[Event "Frauenbundesliga 2021-22"]
[Site "Germany"]
[Date "2022.05.29"]
[Round "11.6"]
[White "Genova, Lyubka"]
[Black "Schuster, Rebekka"]
[Result "1-0"]
[ECO "C00"]
[WhiteElo "2225"]
[BlackElo "1830"]
[Annotator "TA"]
[PlyCount "45"]
[EventDate "2021.11.26"]
[EventType "team-tourn"]
[EventCountry "GER"]
[SourceTitle "playchess.com"]
[Source "ChessBase"]
[SourceQuality "1"]
[WhiteTeam "Hamburger SK"]
[BlackTeam "Loeberitz"]
[TimeControl "40/5400+30:1800+30"]

{[%evp 23,45,30,84,34,58,60,90,25,31,20,29,-6,513,502,619,590,1010,1001,1000,987,958,927,29993,29991]} 1. e4 {[%emt 0:00:04]} e6 {[%emt 0:00:04]} 2. d3 {[%emt 0:00:07]} d5 {[%emt 0:00:09]} 3. Qe2 {[%emt 0:00:07]} Nf6 {[%emt 0:00:20]} 4. Nf3 {[%emt 0:00:13]} Be7 {[%emt 0:00:25]} 5. g3 {[%emt 0:00:55]} c5 {[%emt 0:00:25]} 6. Bg2 {[%emt 0:00:35]} Nc6 {[%emt 0:00:17]} 7. O-O {[%emt 0:04:13]} b6 {[%emt 0:05:52]} 8. e5 {[%emt 0:25:09]} Nd7 {[%emt 0:00:34]} 9. c4 {[%emt 0:00:09]} dxc4 {[%emt 0:10:08]} (9... O-O) 10. dxc4 {[%emt 0:00:06]} Bb7 {[%emt 0:00:19]} 11. Rd1 {[%emt 0:00:40]} (11. Nc3) 11... Qc7 {[%emt 0:01:13]} 12. Nc3 {[%emt 0:07:46]} a6 {[%emt 0:15:02]} (12... Rd8 $11) 13. h4 {[%emt 0:10:14] White is more active. C00: French: Unusual White 2nd moves.} ({Better is} 13. Bf4 $16) 13... O-O-O {[%emt 0:09:15]} 14. Bf4 {[%emt 0:00:22][%cal Oc3d5]} h6 {[%emt 0:02:12][%cal Og7g5] [#]} 15. Ne4 $146 {[%emt 0:12:00] Inhibits g5.} (15. Nd5 $1 $16 Qb8 16. Rd2 (16. Nxe7+ Nxe7 17. h5 g5 $14)) ({Predecessor:} 15. Nd5 Qb8 16. Rac1 Rhg8 17. h5 Qa8 18. a3 Rge8 19. b4 cxb4 20. axb4 Nxb4 21. Nxe7+ Rxe7 {1-0 (38) Bachmann,A (2633)-Alinasab,M (2280) Chess.com INT 2019}) 15... Ndxe5 $11 {[%emt 0:27:21]} 16. Nxe5 {[%emt 0:14:59]} Nxe5 {[%emt 0:00:18]} 17. Nxc5 {[%emt 0:00:23]} Qxc5 $4 {[%emt 0:03:54][%mdl 8192] [#] Loses the game.} (17... Bxg2 $11 {and Black has nothing to worry.} 18. Kxg2 Qc6+ 19. Ne4 Ng6) 18. b4 $1 $18 {[%emt 0:07:10]} ({And not} 18. Qxe5 Qxe5 19. Bxe5 f6 $11) ({Inferior is} 18. Bxe5 Bxg2 19. Kxg2 f6 $11) 18... Nf3+ {[%emt 0:02:34]} 19. Bxf3 {[%emt 0:00:23]} Qf5 {[%emt 0:00:18]} 20. Bxb7+ {[%emt 0:02:43]} Kxb7 {[%emt 0:00:16]} 21. Qf3+ {[%emt 0:00:09]} Ka7 {[%emt 0:01:13]} 22. Qc6 {[%emt 0:00:23][%cal Oc4c5] c5! would kill now.} Bf6 {[%emt 0:08:19]} 23. Be3 {[%emt 0:04:16] Weighted Error Value: White=0.26 (precise) /Black=1.55} 1-0

[Event "Frauenbundesliga 2021-22"]
[Site "Germany"]
[Date "2022.05.29"]
[Round "11.6"]
[White "Jelica, Mara"]
[Black "Daulyte-Cornette, Deimante"]
[Result "0-1"]
[ECO "B33"]
[WhiteElo "2121"]
[BlackElo "2372"]
[Annotator "TA"]
[PlyCount "100"]
[EventDate "2021.11.26"]
[EventType "team-tourn"]
[EventCountry "GER"]
[SourceTitle "playchess.com"]
[Source "ChessBase"]
[SourceQuality "1"]
[WhiteTeam "Deizisau"]
[BlackTeam "Schwaebisch Hall"]
[TimeControl "40/5400+30:1800+30"]

{[%evp 15,100,50,56,52,67,16,15,0,0,0,4,-8,0,-60,-50,-62,-60,-79,-74,-83,-80,-89,-38,-41,-32,-50,-61,-75,-39,-38,-43,-40,0,-100,-100,-92,-95,-93,-91,-116,-113,-222,-104,-117,0,-414,-414,-400,-393,-361,-371,-410,-392,-324,-324,-648,-648,-1128,-279,-1082,-996,-1732,-1693,-10687,-9135,-7239,-6006,-6099,-6099,-6099,-3810,-29960,-29963,-29963,-29965,-29961,-29966,-29966,-834,-29960,-29949,-29975,-29976,-29975,-29976,-29989,-29990]} 1. e4 {[%emt 0:00:02]} c5 {[%emt 0:00:08]} 2. Nf3 {[%emt 0:00:04]} Nc6 {[%emt 0:00:06]} 3. d4 {[%emt 0:00:04]} cxd4 {[%emt 0:00:09]} 4. Nxd4 {[%emt 0:00:03]} Nf6 {[%emt 0:00:11]} 5. Nc3 {[%emt 0:00:12]} e5 {[%emt 0:00:07]} 6. Ndb5 {[%emt 0:00:03]} d6 {[%emt 0:00:10]} 7. Bg5 {[%emt 0:01:45]} a6 {[%emt 0:00:34]} 8. Na3 {[%emt 0:00:25]} Be6 {[%emt 0:00:29]} 9. Nc4 {[%emt 0:05:52] B33: Sicilian: Pelikan and Sveshnikov Variations.} Rb8 {[%emt 0:00:28]} 10. Ne3 {[%emt 0:01:29]} (10. g3 $14) 10... Be7 $11 {[%emt 0:00:43][%cal Of6e4]} 11. Bxf6 {[%emt 0:00:59] The position is equal.} Bxf6 {[%emt 0:00:19]} 12. Ncd5 {[%emt 0:00:17]} Bg5 {[%emt 0:00:57]} 13. a4 {[%emt 0:02:27]} O-O {[%emt 0:02:48]} 14. h4 {[%emt 0:00:59] [#]} (14. c3 $11) 14... Bxe3 $146 {[%emt 0:04:54]} ({Predecessor:} 14... Bh6 15. g4 Bf4 16. c3 Ne7 17. Nxf4 exf4 18. Ng2 Ng6 19. Be2 d5 {0-1 (37) Kosteniuk,A (2513)-Harika,D (2517) Chess.com INT 2022}) 15. Nxe3 {[%emt 0:00:06]} Qb6 {[%emt 0:01:26]} 16. Qxd6 {[%emt 0:04:50]} Qxb2 {[%emt 0:04:54]} 17. Qa3 {[%emt 0:00:14] Against Qc3+} Qd4 {[%emt 0:11:16]} 18. Bd3 {[%emt 0:02:01]} Nb4 {[%emt 0:03:38]} ({Black should play} 18... b5 $17 {aiming for ...b4.} 19. axb5 axb5) 19. O-O {[%emt 0:01:08]} Rfc8 {[%emt 0:02:14] [#] Inhibits c3. And now ...Rc3 would win.} 20. Rab1 {[%emt 0:02:44]} a5 {[%emt 0:13:12]} 21. Qb2 {[%emt 0:05:54]} Rc3 {[%emt 0:16:00] 0x0.001259660f4edp-1022s more active pieces.} 22. Rfd1 {[%emt 0:05:16][%cal Od3c4]} Nxd3 {[%emt 0:04:39]} (22... Rc5 {keeps more tension.} 23. Qa3 Qc3 24. Qxc3 Rxc3 25. Bf1 Kf8) 23. cxd3 {[%emt 0:04:03][%cal Oe3c4]} Rxd3 {[%emt 0:01:19]} (23... h6 $5 {[%cal Rc3d3]}) 24. Qb5 {[%emt 0:04:31]} (24. Qc2 $11 Rxd1+ 25. Rxd1) 24... Rxd1+ $17 {[%emt 0:01:35]} 25. Rxd1 {[%emt 0:00:03]} Qxe4 {[%emt 0:00:13]} 26. Qxa5 {[%emt 0:00:35][%cal Oa5d8] [#] Intending Qd8+! and mate.} h6 {[%emt 0:02:15]} 27. Rd8+ {[%emt 0:02:35]} Rxd8 {[%emt 0:00:55]} 28. Qxd8+ {[%emt 0:00:02][%mdl 4096] Endgame KQB-KQN} Kh7 {[%emt 0:00:07]} 29. a5 {[%emt 0:01:09]} f5 {[%emt 0:08:35]} (29... Qb1+ $17 30. Qd1 Qxd1+ 31. Nxd1 Kg6) 30. Qc7 $2 {[%emt 0:06:47][%mdl 8192] Black continues to play with concentration.} (30. Qd6 $11 {and White is okay.} f4 31. Qxe6 fxe3 32. fxe3) 30... f4 $19 {[%emt 0:01:56]} 31. Qc2 {[%emt 0:00:07]} Qxc2 {[%emt 0:00:36]} 32. Nxc2 {[%emt 0:00:01] KB-KN} Bc4 {[%emt 0:03:31]} 33. g3 {[%emt 0:07:26]} Kg6 {[%emt 0:04:29]} 34. Kg2 {[%emt 0:04:58]} Kf5 {[%emt 0:01:08]} 35. gxf4 $2 {[%emt 0:05:52]} (35. Ne1) 35... exf4 {[%emt 0:00:16] Threatens to win with ...Kg4.} 36. Kf3 {[%emt 0:01:37]} Bd5+ {[%emt 0:06:52]} 37. Ke2 {[%emt 0:00:13]} Kg4 {[%emt 0:00:04]} 38. Kd3 {[%emt 0:00:32]} Kf3 {[%emt 0:01:34] ( -> ...Be4+)} 39. Kd4 {[%emt 0:07:33]} Bb3 {[%emt 0:01:36]} 40. Nb4 {[%emt 0:00:27]} Kxf2 {[%emt 0:01:48]} 41. Nd3+ {[%emt 0:34:31]} Kg3 {[%emt 0:30:09]} 42. Nc5 {[%emt 0:00:12]} Bc2 {[%emt 0:00:00] White must now prevent ...f3.} 43. Nxb7 {[%emt 0:00:00]} f3 {[%emt 0:00:00]} 44. a6 {[%emt 0:00:00]} f2 {[%emt 0:00:00]} 45. a7 {[%emt 0:00:00]} f1=Q {[%emt 0:00:00]} 46. a8=Q {[%emt 0:00:00]} Qf6+ {[%emt 0:00:00]} (46... Qd3+ $142 47. Kc5 Qc3+ 48. Kd5 Qb3+ 49. Ke5 Qe3+ 50. Kd6 Be4 51. Qa6 Qf4+ 52. Ke7 Qc7+ 53. Ke8 Qc8+ 54. Kf7 Qxb7+ 55. Qxb7 Bxb7 56. h5 Kg4 57. Kg8 Kxh5 58. Kxg7 Kg5 59. Kf8 h5 60. Ke8 h4 61. Kd8 h3 62. Kc7 Bf3 63. Kd7 h2 64. Kd6 h1=Q 65. Kc5 Be2 66. Kd4 Qc1 67. Ke5 Qc5+ 68. Ke6 Qc7 69. Kd5 Kf5 70. Kd4 Qe5#) 47. Kc5 {[%emt 0:00:00]} Qc3+ {[%emt 0:00:00] Black mates.} 48. Kb6 {[%emt 0:00:00]} Qb4+ {[%emt 0:00:00]} 49. Kc7 {[%emt 0:00:00]} Be4 {[%emt 0:00:00]} 50. Kd8 {[%emt 0:00:00]} Qf8+ {[%emt 0:00:00] Weighted Error Value: White=1.11/Black=0.26 (precise)} 0-1